[Event "*** Titled Tuesday 3|2 Blitz"]
[Site "Chess.com"]
[Date "2016.05.03"]
[Round "3"]
[White "exoticprincess"]
[Black "psv98"]
[Result "1-0"]
[WhiteElo "2799"]
[BlackElo "2478"]
[TimeControl "180+2"]
[EndTime "11:34:20 PDT"]
[Termination "exoticprincess won by resignation"]

1. b3 {[%clk 0:03:00]} 1... Nf6 {[%clk 0:03:00.6]} 2. Bb2 {[%clk 0:03:00.4]}
2... g6 {[%clk 0:03:01.9]} 3. e3 {[%clk 0:03:01.7]} 3... Bg7 {[%clk 0:03:01.5]}
4. Nc3 {[%clk 0:03:03.4]} 4... c5 {[%clk 0:02:58.5]} 5. d4 {[%clk 0:03:04.6]}
5... cxd4 {[%clk 0:02:59.1]} 6. exd4 {[%clk 0:03:05.9]} 6... d5 {[%clk
0:03:00.5]} 7. Qd2 {[%clk 0:03:06.9]} 7... Nc6 {[%clk 0:03:00]} 8. O-O-O {[%clk
0:03:07.3]} 8... Bf5 {[%clk 0:02:58.5]} 9. Bb5 {[%clk 0:03:01.7]} 9... Rc8
{[%clk 0:02:39]} 10. f3 {[%clk 0:03:02.2]} 10... h5 {[%clk 0:02:39.1]} 11. Kb1
{[%clk 0:02:58.1]} 11... a6 {[%clk 0:02:39.2]} 12. Bxc6+ {[%clk 0:02:58.5]}
12... Rxc6 {[%clk 0:02:41.1]} 13. Nge2 {[%clk 0:02:47.3]} 13... b5 {[%clk
0:02:37.6]} 14. Ba3 {[%clk 0:02:42.6]} 14... a5 {[%clk 0:02:26.8]} 15. Bc5
{[%clk 0:02:42.1]} 15... b4 {[%clk 0:02:11.2]} 16. Na4 {[%clk 0:02:43.1]} 16...
O-O {[%clk 0:02:08.1]} 17. h3 {[%clk 0:02:36]} 17... h4 {[%clk 0:01:53.7]} 18.
Qf4 {[%clk 0:02:36]} 18... Nd7 {[%clk 0:01:44.7]} 19. Qxh4 {[%clk 0:02:36.4]}
19... e5 {[%clk 0:01:42.3]} 20. Qxd8 {[%clk 0:02:36]} 20... Rxd8 {[%clk
0:01:44.2]} 21. g4 {[%clk 0:02:36.8]} 21... Bxc2+ {[%clk 0:01:37.8]} 22. Kxc2
{[%clk 0:02:37.9]} 22... exd4 {[%clk 0:01:39.1]} 23. Rc1 {[%clk 0:02:39.6]}
23... Nxc5 {[%clk 0:01:33.2]} 24. Nxc5 {[%clk 0:02:40.5]} 24... Rxc5+ {[%clk
0:01:34]} 25. Kd3 {[%clk 0:02:40]} 25... Rdc8 {[%clk 0:01:34.2]} 26. Rxc5 {[%clk
0:02:38.5]} 26... Rxc5 {[%clk 0:01:35.7]} 27. Rc1 {[%clk 0:02:39.4]} 27... Rxc1
{[%clk 0:01:20.5]} 28. Nxc1 {[%clk 0:02:40.4]} 28... Kf8 {[%clk 0:01:22.4]} 29.
Ne2 {[%clk 0:02:41]} 29... Ke7 {[%clk 0:01:24]} 30. Nxd4 {[%clk 0:02:41.4]}
30... Kd6 {[%clk 0:01:25.5]} 31. f4 {[%clk 0:02:29.2]} 31... Bh6 {[%clk
0:01:09.5]} 32. Ke3 {[%clk 0:02:27]} 32... Kc5 {[%clk 0:01:04.8]} 33. Nf3 {[%clk
0:02:24.1]} 33... d4+ {[%clk 0:00:35.8]} 34. Nxd4 {[%clk 0:02:05.2]} 34... Kd5
{[%clk 0:00:17.1]} 35. Nf3 {[%clk 0:02:04.9]} 35... f6 {[%clk 0:00:18]} 36. g5
{[%clk 0:02:01.2]} 36... fxg5 {[%clk 0:00:15.2]} 37. fxg5 {[%clk 0:02:02.2]}
37... Bf8 {[%clk 0:00:16.7]} 38. Nh4 {[%clk 0:02:00]} 38... Bc5+ {[%clk
0:00:17.4]} 39. Kf3 {[%clk 0:01:59.3]} 39... Kd4 {[%clk 0:00:15.6]} 40. Nxg6
{[%clk 0:01:57.2]} 40... Kc3 {[%clk 0:00:17.1]} 41. Ne5 {[%clk 0:01:56.2]} 41...
Bf8 {[%clk 0:00:08.1]} 42. h4 {[%clk 0:01:54.9]} 42... Kb2 {[%clk 0:00:08.9]}
43. Nc4+ {[%clk 0:01:55.8]} 43... Kxa2 {[%clk 0:00:03.9]} 44. Nxa5 {[%clk
0:01:57.1]} 1-0

[Event "*** Titled Tuesday 3|2 Blitz"]
[Site "Chess.com"]
[Date "2016.05.03"]
[Round "3"]
[White "Tesla17"]
[Black "Saitama_Hero"]
[Result "0-1"]
[WhiteElo "2241"]
[BlackElo "2160"]
[TimeControl "180+2"]
[EndTime "11:34:26 PDT"]
[Termination "Saitama_Hero won by resignation"]

1. d4 {[%clk 0:03:01.9]} 1... Nf6 {[%clk 0:02:59.6]} 2. c4 {[%clk 0:03:02.7]}
2... g6 {[%clk 0:03:00.9]} 3. Nc3 {[%clk 0:03:03]} 3... d5 {[%clk 0:03:02.4]} 4.
cxd5 {[%clk 0:03:03.9]} 4... Nxd5 {[%clk 0:03:04.3]} 5. Na4 {[%clk 0:03:05.1]}
5... Bg7 {[%clk 0:03:02.9]} 6. e4 {[%clk 0:03:06.3]} 6... Nb6 {[%clk 0:03:01.3]}
7. Be3 {[%clk 0:03:06.8]} 7... O-O {[%clk 0:03:00.5]} 8. Nf3 {[%clk 0:03:06.5]}
8... Nxa4 {[%clk 0:02:52.7]} 9. Qxa4 {[%clk 0:03:06.6]} 9... c5 {[%clk
0:02:49.1]} 10. Rd1 {[%clk 0:03:02.1]} 10... Bd7 {[%clk 0:02:44.1]} 11. Qb3
{[%clk 0:02:59]} 11... Qa5+ {[%clk 0:02:30.5]} 12. Bd2 {[%clk 0:02:55.7]} 12...
Qc7 {[%clk 0:02:25.9]} 13. dxc5 {[%clk 0:02:42.4]} 13... Na6 {[%clk 0:02:25.6]}
14. Bxa6 {[%clk 0:02:39.3]} 14... bxa6 {[%clk 0:02:27.5]} 15. O-O {[%clk
0:02:34.5]} 15... Rab8 {[%clk 0:02:28.9]} 16. Qa3 {[%clk 0:02:17.1]} 16... Bxb2
{[%clk 0:02:21.6]} 17. Qe3 {[%clk 0:02:09.8]} 17... Bg7 {[%clk 0:02:23.1]} 18.
e5 {[%clk 0:01:59.5]} 18... e6 {[%clk 0:02:07]} 19. Rc1 {[%clk 0:01:50.4]} 19...
Bc6 {[%clk 0:01:53.3]} 20. Nd4 {[%clk 0:01:34.2]} 20... Bd5 {[%clk 0:01:53.4]}
21. f4 {[%clk 0:01:33]} 21... Bxa2 {[%clk 0:01:52.3]} 22. Qa3 {[%clk 0:01:22]}
22... Bd5 {[%clk 0:01:41.8]} 23. Qxa6 {[%clk 0:01:22.4]} 23... Rfd8 {[%clk
0:01:40.5]} 24. Ba5 {[%clk 0:01:22.4]} 24... Qc8 {[%clk 0:01:14]} 25. Qxa7
{[%clk 0:01:11]} 25... Rd7 {[%clk 0:01:06.9]} 26. Bc7 {[%clk 0:00:51.7]} 26...
Rxc7 {[%clk 0:01:05.6]} 27. Qa5 {[%clk 0:00:51.1]} 27... Bf8 {[%clk 0:01:05.5]}
28. c6 {[%clk 0:00:50.8]} 28... Bxc6 {[%clk 0:01:04.2]} 29. Rf2 {[%clk
0:00:50.9]} 29... Bb4 {[%clk 0:00:52.5]} 30. Qa1 {[%clk 0:00:33.8]} 30... Bd5
{[%clk 0:00:52.5]} 31. Rd1 {[%clk 0:00:29.5]} 31... Bc3 {[%clk 0:00:51]} 32. Qa6
{[%clk 0:00:28.2]} 32... Qxa6 {[%clk 0:00:44.6]} 0-1

[Event "*** Titled Tuesday 3|2 Blitz"]
[Site "Chess.com"]
[Date "2016.05.03"]
[Round "3"]
[White "iturrizaga"]
[Black "Aguiar94"]
[Result "1-0"]
[WhiteElo "2555"]
[BlackElo "2395"]
[TimeControl "180+2"]
[EndTime "11:34:49 PDT"]
[Termination "iturrizaga won by resignation"]

1. Nf3 {[%clk 0:03:01.9]} 1... Nf6 {[%clk 0:03:00.2]} 2. c4 {[%clk 0:03:03.8]}
2... e6 {[%clk 0:03:01]} 3. Nc3 {[%clk 0:03:05.5]} 3... d5 {[%clk 0:03:00.7]} 4.
e3 {[%clk 0:03:04.3]} 4... Be7 {[%clk 0:02:59.1]} 5. b3 {[%clk 0:03:04.4]} 5...
O-O {[%clk 0:02:59.8]} 6. Bb2 {[%clk 0:03:06]} 6... c5 {[%clk 0:03:00.3]} 7.
cxd5 {[%clk 0:03:06.7]} 7... exd5 {[%clk 0:03:01]} 8. d4 {[%clk 0:03:07.8]} 8...
Nc6 {[%clk 0:03:02]} 9. dxc5 {[%clk 0:03:09.2]} 9... Bxc5 {[%clk 0:03:02.7]} 10.
a3 {[%clk 0:03:07.5]} 10... a6 {[%clk 0:03:02.5]} 11. Be2 {[%clk 0:03:06.4]}
11... Be6 {[%clk 0:03:02.2]} 12. O-O {[%clk 0:03:05.8]} 12... Ba7 {[%clk
0:03:03]} 13. Na4 {[%clk 0:02:57.5]} 13... Ne4 {[%clk 0:03:03.1]} 14. Rc1 {[%clk
0:02:56.1]} 14... Rc8 {[%clk 0:02:59.3]} 15. b4 {[%clk 0:02:52.1]} 15... Qd6
{[%clk 0:02:48]} 16. Qd3 {[%clk 0:02:45.4]} 16... Bg4 {[%clk 0:02:42.8]} 17.
Rfd1 {[%clk 0:02:34.4]} 17... Rfe8 {[%clk 0:02:27.6]} 18. Qxd5 {[%clk
0:02:18.3]} 18... Qh6 {[%clk 0:02:21.8]} 19. Bc4 {[%clk 0:01:25.5]} 19... Nxf2
{[%clk 0:02:10.7]} 20. Qxf7+ {[%clk 0:01:24.4]} 20... Kh8 {[%clk 0:02:11.3]} 21.
Kxf2 {[%clk 0:01:20.7]} 21... Qxe3+ {[%clk 0:01:43.7]} 22. Kg3 {[%clk
0:01:16.8]} 22... Qf2+ {[%clk 0:01:44.8]} 23. Kxg4 {[%clk 0:01:00.9]} 23...
Qxg2+ {[%clk 0:01:46]} 24. Kh5 {[%clk 0:00:42.8]} 24... Qh3+ {[%clk 0:01:46.1]}
25. Nh4 {[%clk 0:00:41]} 25... Ne5 {[%clk 0:01:46.7]} 26. Rg1 {[%clk 0:00:24.2]}
26... g6+ {[%clk 0:01:39.7]} 27. Rxg6 {[%clk 0:00:19.3]} 27... hxg6+ {[%clk
0:01:38.9]} 28. Qxg6 {[%clk 0:00:19.1]} 28... Be3 {[%clk 0:00:39.7]} 29. Rg1
{[%clk 0:00:19.3]} 29... Qxh4+ {[%clk 0:00:26.4]} 30. Kxh4 {[%clk 0:00:19.9]}
30... Rxc4+ {[%clk 0:00:27.5]} 31. Kh5 {[%clk 0:00:15.2]} 1-0

[Event "*** Titled Tuesday 3|2 Blitz"]
[Site "Chess.com"]
[Date "2016.05.03"]
[Round "3"]
[White "simonachess"]
[Black "chessbia"]
[Result "0-1"]
[WhiteElo "2131"]
[BlackElo "2050"]
[TimeControl "180+2"]
[EndTime "11:35:14 PDT"]
[Termination "chessbia won by resignation"]

1. d4 {[%clk 0:02:49.9]} 1... d5 {[%clk 0:03:00.6]} 2. c4 {[%clk 0:02:50.7]}
2... c6 {[%clk 0:02:59.6]} 3. Nc3 {[%clk 0:02:51.8]} 3... Nf6 {[%clk 0:03:00.4]}
4. Bf4 {[%clk 0:02:52.2]} 4... e6 {[%clk 0:02:59.3]} 5. e3 {[%clk 0:02:51.9]}
5... Nbd7 {[%clk 0:03:00]} 6. Nf3 {[%clk 0:02:53.1]} 6... Be7 {[%clk 0:03:01.3]}
7. c5 {[%clk 0:02:53.4]} 7... O-O {[%clk 0:03:01.2]} 8. h3 {[%clk 0:02:54.9]}
8... b6 {[%clk 0:03:02.2]} 9. b4 {[%clk 0:02:55.3]} 9... a5 {[%clk 0:03:03.9]}
10. a3 {[%clk 0:02:56.8]} 10... Re8 {[%clk 0:03:00.3]} 11. Bd3 {[%clk
0:02:55.9]} 11... h6 {[%clk 0:03:00.5]} 12. O-O {[%clk 0:02:55.7]} 12... Bf8
{[%clk 0:02:59.9]} 13. b5 {[%clk 0:02:45.6]} 13... bxc5 {[%clk 0:02:52.5]} 14.
bxc6 {[%clk 0:02:44.4]} 14... Nb6 {[%clk 0:02:52.7]} 15. c7 {[%clk 0:02:38.3]}
15... Qe7 {[%clk 0:02:53.4]} 16. dxc5 {[%clk 0:02:23.9]} 16... Qxc5 {[%clk
0:02:53.2]} 17. Rc1 {[%clk 0:02:19.6]} 17... Nc4 {[%clk 0:02:46.8]} 18. Na4
{[%clk 0:02:04.1]} 18... Qxa3 {[%clk 0:02:34.8]} 19. Bxc4 {[%clk 0:01:57.6]}
19... dxc4 {[%clk 0:02:34.6]} 20. Rxc4 {[%clk 0:01:55.5]} 20... Nd5 {[%clk
0:02:35.1]} 21. Bg3 {[%clk 0:01:41.9]} 21... Ba6 {[%clk 0:02:34.6]} 22. Qd4
{[%clk 0:01:26.4]} 22... Bxc4 {[%clk 0:02:30]} 23. Qxc4 {[%clk 0:01:28.3]} 23...
Bd6 {[%clk 0:02:22.1]} 24. e4 {[%clk 0:01:25.4]} 24... Bxg3 {[%clk 0:02:16.6]}
25. exd5 {[%clk 0:01:21.6]} 25... exd5 {[%clk 0:02:14.5]} 26. Qc6 {[%clk
0:01:22.1]} 26... Bxc7 {[%clk 0:02:13]} 27. Nc5 {[%clk 0:01:06.6]} 27... Rac8
{[%clk 0:02:04.5]} 28. Qxd5 {[%clk 0:00:48.6]} 28... Bh2+ {[%clk 0:02:04.7]} 29.
Kxh2 {[%clk 0:00:47.6]} 29... Qxc5 {[%clk 0:02:05.8]} 30. Qd2 {[%clk 0:00:44.4]}
30... Qc3 {[%clk 0:02:01]} 31. Qa2 {[%clk 0:00:37.9]} 31... Ra8 {[%clk
0:01:58.9]} 32. Rb1 {[%clk 0:00:34.2]} 32... a4 {[%clk 0:01:56.7]} 33. Rb7
{[%clk 0:00:34.5]} 33... Rf8 {[%clk 0:01:52]} 34. Nh4 {[%clk 0:00:18.2]} 34...
Qe5+ {[%clk 0:01:39.1]} 35. g3 {[%clk 0:00:18.1]} 35... Qe6 {[%clk 0:01:31.5]}
36. Qa3 {[%clk 0:00:16.3]} 36... Rfd8 {[%clk 0:01:21]} 37. Re7 {[%clk
0:00:16.8]} 37... Qf6 {[%clk 0:01:20]} 38. Kg2 {[%clk 0:00:16.2]} 38... Rd2
{[%clk 0:01:19.4]} 39. Nf3 {[%clk 0:00:17.1]} 39... Rc2 {[%clk 0:01:17.1]} 40.
Qe3 {[%clk 0:00:17.1]} 40... Rc3 {[%clk 0:01:07.1]} 41. Qe4 {[%clk 0:00:18.4]}
41... Rac8 {[%clk 0:01:00.9]} 42. Re8+ {[%clk 0:00:18.6]} 42... Rxe8 {[%clk
0:01:01.6]} 43. Qxe8+ {[%clk 0:00:20.5]} 43... Kh7 {[%clk 0:01:03]} 44. Qe4+
{[%clk 0:00:21.9]} 44... g6 {[%clk 0:01:04]} 45. Ne5 {[%clk 0:00:20.7]} 45... a3
{[%clk 0:00:59.9]} 46. Nc4 {[%clk 0:00:16.7]} 46... a2 {[%clk 0:00:55.5]} 0-1

[Event "*** Titled Tuesday 3|2 Blitz"]
[Site "Chess.com"]
[Date "2016.05.03"]
[Round "3"]
[White "E-Shaposhnikov"]
[Black "jlandaw"]
[Result "1-0"]
[WhiteElo "2477"]
[BlackElo "2313"]
[TimeControl "180+2"]
[EndTime "11:35:50 PDT"]
[Termination "E-Shaposhnikov won by resignation"]

1. Nf3 {[%clk 0:02:59.1]} 1... d5 {[%clk 0:02:58.7]} 2. d4 {[%clk 0:02:59.6]}
2... Nf6 {[%clk 0:02:59.7]} 3. c4 {[%clk 0:03:00.6]} 3... c6 {[%clk 0:02:51.9]}
4. e3 {[%clk 0:03:01.5]} 4... e6 {[%clk 0:02:52.7]} 5. Nbd2 {[%clk 0:03:01.3]}
5... Nbd7 {[%clk 0:02:52.8]} 6. b3 {[%clk 0:03:02.6]} 6... Bd6 {[%clk
0:02:53.7]} 7. Bb2 {[%clk 0:03:04.1]} 7... O-O {[%clk 0:02:54.5]} 8. Bd3 {[%clk
0:03:05.7]} 8... Qe7 {[%clk 0:02:55.3]} 9. Ne5 {[%clk 0:03:06.8]} 9... c5 {[%clk
0:02:40.2]} 10. O-O {[%clk 0:03:05.6]} 10... b6 {[%clk 0:02:32.5]} 11. f4 {[%clk
0:02:57.7]} 11... Bb7 {[%clk 0:02:33.4]} 12. Qf3 {[%clk 0:02:57.2]} 12... dxc4
{[%clk 0:02:27.8]} 13. Bxh7+ {[%clk 0:02:38.7]} 13... Kxh7 {[%clk 0:02:19.5]}
14. Qxb7 {[%clk 0:02:40.6]} 14... cxb3 {[%clk 0:02:11.3]} 15. axb3 {[%clk
0:02:23.4]} 15... Nxe5 {[%clk 0:02:00.9]} 16. Qxe7 {[%clk 0:02:23.3]} 16... Bxe7
{[%clk 0:02:02.8]} 17. fxe5 {[%clk 0:02:20]} 17... Nd5 {[%clk 0:02:04]} 18. Kf2
{[%clk 0:02:13.5]} 18... Rfc8 {[%clk 0:01:53.6]} 19. Rac1 {[%clk 0:02:07]} 19...
Bg5 {[%clk 0:01:28.3]} 20. Rfe1 {[%clk 0:01:59.7]} 20... a5 {[%clk 0:01:17.9]}
21. Ne4 {[%clk 0:01:52.8]} 21... Bh6 {[%clk 0:01:11.3]} 22. g4 {[%clk
0:01:48.5]} 22... Kg6 {[%clk 0:00:31.7]} 23. g5 {[%clk 0:01:36.5]} 23... Bxg5
{[%clk 0:00:25.3]} 24. Rg1 {[%clk 0:01:36.9]} 24... f6 {[%clk 0:00:26.8]} 25. h4
{[%clk 0:01:37.4]} 25... Nxe3 {[%clk 0:00:21]} 26. hxg5 {[%clk 0:01:33.8]} 26...
f5 {[%clk 0:00:21.3]} 27. Kxe3 {[%clk 0:01:34.2]} 27... fxe4 {[%clk 0:00:21.5]}
28. Kxe4 {[%clk 0:01:34.6]} 28... a4 {[%clk 0:00:23.1]} 29. dxc5 {[%clk
0:01:25.6]} 29... bxc5 {[%clk 0:00:22.6]} 30. bxa4 {[%clk 0:01:10.9]} 30...
Rxa4+ {[%clk 0:00:24.5]} 31. Kd3 {[%clk 0:01:11.6]} 31... Rb8 {[%clk 0:00:21.8]}
32. Kc2 {[%clk 0:01:05.3]} 32... Re4 {[%clk 0:00:18.7]} 33. Rce1 {[%clk
0:01:03.9]} 33... Rc4+ {[%clk 0:00:16.4]} 34. Bc3 {[%clk 0:01:04.5]} 34... Ra8
{[%clk 0:00:15.6]} 35. Ra1 {[%clk 0:01:03.9]} 35... Rh8 {[%clk 0:00:13.4]} 36.
Kb3 {[%clk 0:00:55.6]} 36... Re4 {[%clk 0:00:14.5]} 37. Ra6 {[%clk 0:00:55.6]}
37... Kf5 {[%clk 0:00:12.5]} 38. Rf1+ {[%clk 0:00:56.4]} 38... Kxg5 {[%clk
0:00:14]} 39. Rxe6 {[%clk 0:00:56.6]} 39... Rb8+ {[%clk 0:00:15.1]} 40. Kc2
{[%clk 0:00:57.2]} 40... Rc4 {[%clk 0:00:16.2]} 41. Kd3 {[%clk 0:00:56.6]} 41...
Rg4 {[%clk 0:00:17.8]} 42. Bd2+ {[%clk 0:00:56.6]} 42... Kh4 {[%clk 0:00:18.1]}
43. Re7 {[%clk 0:00:36.4]} 43... Rb3+ {[%clk 0:00:18.1]} 44. Kc2 {[%clk
0:00:37.2]} 44... c4 {[%clk 0:00:19]} 45. Rf4 {[%clk 0:00:29.1]} 45... g5 {[%clk
0:00:11.7]} 46. Rh7+ {[%clk 0:00:27.4]} 46... Kg3 {[%clk 0:00:12.5]} 47. Rxg4+
{[%clk 0:00:27.3]} 47... Kxg4 {[%clk 0:00:14.4]} 48. e6 {[%clk 0:00:28.3]} 48...
Kf5 {[%clk 0:00:14.7]} 49. e7 {[%clk 0:00:29.1]} 49... Rb8 {[%clk 0:00:16.4]}
50. Rf7+ {[%clk 0:00:30.1]} 50... Ke6 {[%clk 0:00:17.2]} 51. Rf8 {[%clk
0:00:31.4]} 1-0

[Event "*** Titled Tuesday 3|2 Blitz"]
[Site "Chess.com"]
[Date "2016.05.03"]
[Round "3"]
[White "UltimateCrusher2"]
[Black "Kawhi_Leonard2"]
[Result "0-1"]
[WhiteElo "2101"]
[BlackElo "2075"]
[TimeControl "180+2"]
[EndTime "11:35:52 PDT"]
[Termination "Kawhi_Leonard2 won by resignation"]

1. b3 {[%clk 0:03:01.9]} 1... e5 {[%clk 0:02:59.9]} 2. Bb2 {[%clk 0:02:59.1]}
2... d6 {[%clk 0:03:01.4]} 3. Nf3 {[%clk 0:02:58.3]} 3... Nd7 {[%clk 0:03:01.7]}
4. d3 {[%clk 0:02:58.9]} 4... Ngf6 {[%clk 0:03:02.4]} 5. g3 {[%clk 0:03:00]}
5... g6 {[%clk 0:03:03.3]} 6. Bg2 {[%clk 0:03:01.3]} 6... Bg7 {[%clk 0:03:04.9]}
7. O-O {[%clk 0:03:02.5]} 7... O-O {[%clk 0:03:06.3]} 8. c4 {[%clk 0:02:57.8]}
8... Re8 {[%clk 0:03:06.9]} 9. Nc3 {[%clk 0:02:35]} 9... a5 {[%clk 0:03:05.4]}
10. a3 {[%clk 0:02:35.6]} 10... e4 {[%clk 0:02:49.5]} 11. Nxe4 {[%clk
0:02:17.4]} 11... Nxe4 {[%clk 0:02:48.8]} 12. Bxg7 {[%clk 0:02:19.1]} 12... Nxf2
{[%clk 0:02:32.3]} 13. Rxf2 {[%clk 0:02:21]} 13... Kxg7 {[%clk 0:02:31.5]} 14.
Qc2 {[%clk 0:02:12.8]} 14... Ne5 {[%clk 0:01:59.1]} 15. Nxe5 {[%clk 0:02:06.5]}
15... dxe5 {[%clk 0:01:41.7]} 16. Raf1 {[%clk 0:02:05.5]} 16... Qd4 {[%clk
0:01:36.7]} 17. Kh1 {[%clk 0:02:03.7]} 17... Re7 {[%clk 0:01:31.3]} 18. Bd5
{[%clk 0:02:02.4]} 18... f5 {[%clk 0:01:16.4]} 19. Qd2 {[%clk 0:01:56.4]} 19...
c6 {[%clk 0:01:16.1]} 20. Bg2 {[%clk 0:01:52.4]} 20... e4 {[%clk 0:00:48.4]} 21.
e3 {[%clk 0:01:44.4]} 21... Qxd3 {[%clk 0:00:48.9]} 22. Qxd3 {[%clk 0:01:44.1]}
22... exd3 {[%clk 0:00:49.1]} 23. Re1 {[%clk 0:01:37.3]} 23... a4 {[%clk
0:00:48.6]} 24. b4 {[%clk 0:01:36.9]} 24... Be6 {[%clk 0:00:49]} 25. c5 {[%clk
0:01:38.4]} 25... Bb3 {[%clk 0:00:41.9]} 26. Rd2 {[%clk 0:01:37.4]} 26... Bc2
{[%clk 0:00:41.9]} 27. Kg1 {[%clk 0:01:37.3]} 27... Rae8 {[%clk 0:00:35.6]} 28.
Kf2 {[%clk 0:01:38.1]} 28... g5 {[%clk 0:00:36.2]} 29. Bf1 {[%clk 0:01:20.6]}
29... f4 {[%clk 0:00:36.4]} 30. gxf4 {[%clk 0:01:22.2]} 30... gxf4 {[%clk
0:00:36.6]} 31. e4 {[%clk 0:01:23.7]} 31... Rxe4 {[%clk 0:00:36.2]} 32. Rxe4
{[%clk 0:01:24.3]} 32... Rxe4 {[%clk 0:00:36.8]} 33. Bxd3 {[%clk 0:01:25.9]}
33... Rd4 {[%clk 0:00:34.7]} 34. Rxc2 {[%clk 0:01:09.8]} 34... Rxd3 {[%clk
0:00:35.5]} 35. Re2 {[%clk 0:01:11.4]} 35... Kf6 {[%clk 0:00:32.8]} 36. Re4
{[%clk 0:01:12.8]} 36... Rxa3 {[%clk 0:00:17.6]} 37. Rxf4+ {[%clk 0:01:14]}
37... Ke6 {[%clk 0:00:15.4]} 38. Rh4 {[%clk 0:01:14.5]} 38... Rb3 {[%clk
0:00:15.9]} 39. Rxh7 {[%clk 0:01:07.6]} 39... Rxb4 {[%clk 0:00:16.5]} 40. Rh8
{[%clk 0:01:09.3]} 40... Kd5 {[%clk 0:00:16.8]} 41. Ra8 {[%clk 0:01:10.9]} 41...
Kxc5 {[%clk 0:00:17.6]} 42. Kg3 {[%clk 0:01:12.1]} 42... b5 {[%clk 0:00:18.1]}
43. h4 {[%clk 0:01:12.6]} 43... Rb1 {[%clk 0:00:18.7]} 44. h5 {[%clk 0:01:13.5]}
44... Rh1 {[%clk 0:00:18.4]} 45. Kg4 {[%clk 0:01:13.8]} 45... Kb4 {[%clk
0:00:19.4]} 46. Rf8 {[%clk 0:01:01.8]} 46... a3 {[%clk 0:00:20.1]} 47. Rf4+
{[%clk 0:01:03.5]} 47... Kb3 {[%clk 0:00:20.6]} 48. Rf3+ {[%clk 0:01:04.6]}
48... Ka4 {[%clk 0:00:21.1]} 49. Kg5 {[%clk 0:00:42.4]} 49... a2 {[%clk
0:00:21]} 50. Rf8 {[%clk 0:00:43.6]} 50... a1=Q {[%clk 0:00:19.2]} 51. Ra8+
{[%clk 0:00:45.2]} 51... Kb3 {[%clk 0:00:20.3]} 52. Rxa1 {[%clk 0:00:47.1]}
52... Rxa1 {[%clk 0:00:16.3]} 53. h6 {[%clk 0:00:49]} 53... Rh1 {[%clk
0:00:14.9]} 54. Kg6 {[%clk 0:00:50]} 54... Rxh6+ {[%clk 0:00:11.5]} 55. Kxh6
{[%clk 0:00:50.9]} 55... Kc2 {[%clk 0:00:13.2]} 56. Kg5 {[%clk 0:00:52.8]} 56...
b4 {[%clk 0:00:13.7]} 57. Kf4 {[%clk 0:00:54.7]} 57... b3 {[%clk 0:00:15.2]} 0-1

[Event "*** Titled Tuesday 3|2 Blitz"]
[Site "Chess.com"]
[Date "2016.05.03"]
[Round "3"]
[White "alturas_pacificas"]
[Black "Rickstereo"]
[Result "1-0"]
[WhiteElo "2172"]
[BlackElo "2183"]
[TimeControl "180+2"]
[EndTime "11:36:10 PDT"]
[Termination "alturas_pacificas won by resignation"]

1. d4 {[%clk 0:03:00.1]} 1... Nf6 {[%clk 0:03:00]} 2. Bf4 {[%clk 0:03:00.6]}
2... d6 {[%clk 0:02:59.4]} 3. e3 {[%clk 0:03:01.4]} 3... g6 {[%clk 0:02:58]} 4.
Nf3 {[%clk 0:03:02.2]} 4... Bg7 {[%clk 0:02:59]} 5. Be2 {[%clk 0:03:03.2]} 5...
b6 {[%clk 0:02:57.6]} 6. O-O {[%clk 0:03:04.4]} 6... O-O {[%clk 0:02:57.2]} 7.
c4 {[%clk 0:03:05.2]} 7... Bb7 {[%clk 0:02:57.6]} 8. Nc3 {[%clk 0:03:06.5]} 8...
Nbd7 {[%clk 0:02:57.6]} 9. h3 {[%clk 0:03:07.4]} 9... Re8 {[%clk 0:02:58.4]} 10.
Bh2 {[%clk 0:03:07.6]} 10... e5 {[%clk 0:02:55.6]} 11. b4 {[%clk 0:03:08.9]}
11... a5 {[%clk 0:02:52.8]} 12. a3 {[%clk 0:03:08.6]} 12... exd4 {[%clk
0:02:47.4]} 13. exd4 {[%clk 0:03:04.7]} 13... axb4 {[%clk 0:02:43.5]} 14. axb4
{[%clk 0:03:06.6]} 14... Rxa1 {[%clk 0:02:43.8]} 15. Qxa1 {[%clk 0:03:08.5]}
15... Ne4 {[%clk 0:02:24.7]} 16. Nxe4 {[%clk 0:03:03.3]} 16... Rxe4 {[%clk
0:02:22.4]} 17. Qd1 {[%clk 0:02:54.6]} 17... Qa8 {[%clk 0:02:03.1]} 18. d5
{[%clk 0:02:42.7]} 18... Qa2 {[%clk 0:01:53.4]} 19. Bd3 {[%clk 0:02:40.5]} 19...
Re8 {[%clk 0:01:49.2]} 20. Re1 {[%clk 0:02:36.6]} 20... Ne5 {[%clk 0:01:36.5]}
21. Nxe5 {[%clk 0:02:36.5]} 21... Bxe5 {[%clk 0:01:36.7]} 22. Bxe5 {[%clk
0:02:37.9]} 22... Rxe5 {[%clk 0:01:35.6]} 23. Rxe5 {[%clk 0:02:38.6]} 23... dxe5
{[%clk 0:01:37.5]} 24. Qg4 {[%clk 0:02:28.7]} 24... Qa1+ {[%clk 0:01:26.5]} 25.
Kh2 {[%clk 0:02:28.2]} 25... Qc3 {[%clk 0:01:27.3]} 26. Qe2 {[%clk 0:01:55.3]}
26... b5 {[%clk 0:01:18.5]} 27. cxb5 {[%clk 0:01:42.3]} 27... Bxd5 {[%clk
0:01:18.8]} 28. Be4 {[%clk 0:01:37.5]} 28... Bc4 {[%clk 0:01:17.4]} 29. Qg4
{[%clk 0:01:30.9]} 29... Bxb5 {[%clk 0:01:06.2]} 30. Qc8+ {[%clk 0:01:28.3]}
30... Kg7 {[%clk 0:01:06.2]} 31. Bd5 {[%clk 0:01:22.9]} 31... Qd4 {[%clk
0:00:55.6]} 32. Qb7 {[%clk 0:01:04.5]} 32... Qb6 {[%clk 0:00:44.8]} 33. Qc8
{[%clk 0:00:59.1]} 33... Qd6 {[%clk 0:00:36.1]} 34. Qb7 {[%clk 0:00:56]} 34...
e4+ {[%clk 0:00:32.2]} 35. Kg1 {[%clk 0:00:53.8]} 35... Ba6 {[%clk 0:00:23.9]}
36. Qa8 {[%clk 0:00:47.3]} 36... e3 {[%clk 0:00:15.4]} 37. fxe3 {[%clk
0:00:46.7]} 37... Bd3 {[%clk 0:00:13.1]} 38. Qc6 {[%clk 0:00:42.8]} 38... Qxb4
{[%clk 0:00:07.1]} 39. Qxc7 {[%clk 0:00:35.6]} 39... Qf8 {[%clk 0:00:06.9]} 40.
Qe5+ {[%clk 0:00:34.2]} 40... Kg8 {[%clk 0:00:08.3]} 41. Qf6 {[%clk 0:00:33.8]}
41... Bb5 {[%clk 0:00:08]} 42. e4 {[%clk 0:00:34.4]} 42... Be8 {[%clk
0:00:08.8]} 43. h4 {[%clk 0:00:35]} 43... Qg7 {[%clk 0:00:09.5]} 44. Qf4 {[%clk
0:00:33.4]} 44... Qd4+ {[%clk 0:00:10.1]} 45. Kh2 {[%clk 0:00:33.7]} 45... Kg7
{[%clk 0:00:11.8]} 46. h5 {[%clk 0:00:32.8]} 46... h6 {[%clk 0:00:11]} 47. hxg6
{[%clk 0:00:33]} 47... fxg6 {[%clk 0:00:12.9]} 48. Qc7+ {[%clk 0:00:34.1]} 48...
Kf8 {[%clk 0:00:13.1]} 49. Qd6+ {[%clk 0:00:30.3]} 49... Kg7 {[%clk 0:00:13.3]}
50. Qe7+ {[%clk 0:00:31.1]} 1-0